Cogmind - Beta 15 @@@ ROGUE MODE // 2025.09.12 @ 13:26:20 Player: Petvaria Result: Destroyed by MB-DED(R) with Subdweller Beam Cannon Performance ------------- Evolutions (0) 0 Regions Visited (2) 400 Robots Destroyed (34) 170 Value Destroyed (920) 920 Prototype IDs (0) 0 Alien Tech Used (0) 0 Bonus (0) 0 TOTAL SCORE: 1490 Bonus ------- None Cogmind --------- Core Integrity 0/250 Matter 183/300 Energy 250/250 System Corruption 0% Temperature Cool (9) Movement Treading (160) Location -10/Subcaves Parts ------- > --- POWER (1) -------- Ion Engine > --- PROPULSION (2) --- Spiked Treads Spiked Treads > --- UTILITY (2) ------ (None) > --- WEAPON (2) ------- Barrage Gun Battle Cannon > --- INVENTORY (5) ---- Light Treads Aluminum Leg Aluminum Leg Riot Gun Mini Grenade Launcher Peak State ------------ > --- POWER ------------ Ion Engine > --- PROPULSION ------- Spiked Treads Spiked Treads > --- UTILITY ---------- Disposable Heat Sink Makeshift Thermal Plating > --- WEAPON ----------- Riot Gun Barrage Gun > --- INVENTORY -------- Light Treads Aluminum Leg Aluminum Leg Mini Grenade Launcher Scrap Shield Fragment [Rating: 17] Favorites ----------- Power Ion Engine Engine Ion Engine Propulsion Spiked Treads Treads Spiked Treads Utility Large Storage Unit Device Disposable Heat Sink Storage Large Storage Unit Protection Scrap Shield Weapon Battle Cannon Energy Gun Medium Laser Ballistic Gun Barrage Gun Ballistic Cannon Battle Cannon Build | -11 -10 -10 ------- Run | Yrd Mat Sub Slots Evolved . | . . . Power . | . . . Propulsion . | . . . Utility . | . . . Weapon . | . . . Parts Attached 22 | 6 3 13 Power 2 | 1 . 1 Engine 2 | 1 . 1 Core . | . . . Reactor . | . . . Propulsion 6 | 2 1 3 Treads 6 | 2 1 3 Leg . | . . . Wheel . | . . . Hover . | . . . Flight . | . . . Utility 7 | 1 2 4 Device 1 | . . 1 Storage 3 | 1 2 . Processor . | . . . Hackware . | . . . Protection 3 | . . 3 Artifact . | . . . Weapon 7 | 2 . 5 Energy Gun 2 | 1 . 1 Energy Cannon . | . . . Ballistic Gun 3 | 1 . 2 Ballistic Cannon 2 | . . 2 Launcher . | . . . Special Weapon . | . . . Impact Weapon . | . . . Slashing Weapon . | . . . Piercing Weapon . | . . . Special Melee Weapon . | . . . Unidentified Prototypes . | . . . Parts Lost 4 | . . 4 Power . | . . . Propulsion . | . . . Utility 2 | . . 2 Weapon 2 | . . 2 Highest Loss Streak 2 | . . 2 To Critical Strikes . | . . . Average Backups 6 | 2 9 6 Power . | . 1 . Propulsion 3 | 1 3 3 Utility . | . 1 . Weapon 2 | . 2 2 Tool/Special . | . . . Unused Backups 9 | . 2 7 Power . | . . . Propulsion 5 | . 2 3 Utility 1 | . . 1 Weapon 3 | . . 3 Tool/Special . | . . . Average Slot Usage (%) 84 | . 85 84 Engine 14 | . 14 14 Treads 28 | . 28 28 Storage 6 | . 14 3 Protection 7 | . . 9 Energy Gun 6 | . 14 4 Ballistic Gun 14 | . 14 14 Ballistic Cannon 6 | . . 8 Peak Build Rating 17 | 6 8 17 Average Rating 10 | 4 6 11 On Entrance 4 | . 6 7 Naked Turns . | . . . Heaviest Build 32 | 13 28 32 Greatest Support 40 | 40 40 40 Greatest Overweight (x) . | . . . Average Overweight (x) . | . . . Largest Inventory Capacity 15 | 8 15 15 Average Capacity 8 | 6 12 7 Most Carried 13 | 6 10 13 Average Carried 6 | 2 9 6 Final Capacity 15 | 8 15 5 Final Carried 10 | 6 10 5 Class Distribution -------------------- 52% | Derelict-Mutant 47% | Mutant Dominant Class ---------------- Mutant | -10/Materials Derelict-Mutant | -10/Subcaves Resources | -11 -10 -10 ----------- Run | Yrd Mat Sub Matter Collected 984 | 222 113 649 Remotely . | . . . Salvage Created 1033 | . 579 454 Parts 72 | . 39 33 Haulers Intercepted 2 | . 2 . Recyclers Shooed . | . . . Parts Field Recycled . | . . . Retrieved Matter . | . . . Parts Self-Destructed 21 | . . 21 Prevented . | . . . Kills | -11 -10 -10 ------- Run | Yrd Mat Sub Combat Hostiles Destroyed 28 | . 12 16 Guns 22 | . 12 10 Cannons 6 | . . 6 Classes Destroyed 6 | . 5 1 Hauler 2 | . 2 . Operator 1 | . 1 . Watcher 3 | . 3 . Swarmer 8 | . 5 3 Grunt 9 | . 7 2 Subdweller 11 | . . 11 Best Kill Streak 4 | . 4 3 Combat Bots Only 4 | . 4 3 Max Kills in Single Turn 1 | . 1 1 Gunslinging . | . . . Exploded . | . . . Melee . | . . . Uniques/NPCs Destroyed . | . . . Combat | -11 -10 -10 -------- Run | Yrd Mat Sub Hostile Shots Fired 142 | . 51 91 Missed 40 | . 10 30 Hits 102 | . 41 61 Projectile 102 | . 41 61 Critical Strikes 1 | . . 1 Damage Taken 1678 | . 388 1290 Core 266 | . 82 184 Absorbed by Shields . | . . . Core Remaining (%) 100 | 100 . . Volleys Fired 154 | . 45 109 Largest 2 | . 2 2 Hottest 80 | . 70 80 Shots Fired 278 | . 89 189 Gun 193 | . 89 104 Cannon 85 | . . 85 Launcher . | . . . Special . | . . . Kinetic 213 | . 45 168 Thermal 58 | . 44 14 Explosive . | . . . Electromagnetic 7 | . . 7 Robot Hit Streak 24 | . 14 24 Robot Miss Streak 3 | . 3 2 Penetration Max . | . . . Secondary Targets 1 | . 1 . Max Gunslinging Chain 1 | . 1 . Shots Hit Robots 183 | . 63 120 Core Hits 63 | . 31 32 Critical Kills 1 | . . 1 Critical Parts Destroyed 1 | . 1 . Critical Strikes 12 | . 7 5 Burn 6 | . 6 . Destroy 4 | . 1 3 Blast 2 | . . 2 Melee Attacks . | . . . Impact . | . . . Slashing . | . . . Piercing . | . . . Sneak Attacks . | . . . Combat Hostiles . | . . . Follow-up Attacks . | . . . Damage Inflicted 2957 | . 687 2270 Guns 2020 | . 687 1333 Cannons 889 | . . 889 Explosions 48 | . . 48 Melee . | . . . Ramming . | . . . Kinetic 2280 | . 267 2013 Thermal 569 | . 420 149 Explosive . | . . . Electromagnetic 108 | . . 108 Impact . | . . . Slashing . | . . . Piercing . | . . . Highest Corruption . | . . . Average Corruption . | . . . Corruption Purged . | . . . Corruption Blocked . | . . . Overload Shots . | . . . Overflow Damage . | . . . Projectiles . | . . . Explosions . | . . . Melee . | . . . Knockbacks 11 | . . 11 Impact . | . . . Kinetic 11 | . . 11 Secondary . | . . . Self-Inflicted Damage 50 | . . 50 Shots 1 | . . 1 Rammed . | . . . Targets Rammed . | . . . Kicked . | . . . Crushed . | . . . Highest Temperature 227 | . 160 227 Average Temperature 51 | . 54 37 Received Heat Transfer 646 | . 120 526 Siege Activations . | . . . Martial Activations . | . . . Shielding Activations . | . . . Robots Disrupted . | . . . Combat Hostiles . | . . . Robots Corrupted . | . . . Combat Hostiles . | . . . Parts Fried 1 | . . 1 Impact Corruptions . | . . . Robots Melted . | . . . Combat Hostiles . | . . . Parts Melted 2 | . 2 . Heat Transferred 2048 | . 1702 346 Parts Sabotaged . | . . . Parts Stolen . | . . . Parts Stripped . | . . . Power Chain Reactions 1 | . . 1 Alert | -11 -10 -10 ------- Run | Yrd Mat Sub Maximum Alert Level . | . . . Low Security (%) 100 | 100 100 . Level 1 . | . . . Level 2 . | . . . Level 3 . | . . . Level 4 . | . . . Level 5 . | . . . High Security . | . . . Max Security . | . . . Peak Influence 112 | . 112 . Initial . | . . . Average 38 | . 43 . Influence Increases 465 | . 345 120 Destroy 0b10 Robot/C 340 | . 240 100 Destroy 0b10 Robot/NC 30 | . 30 . Destroy Leader 80 | . 60 20 Lose Combat Pursuer 15 | . 15 . Influence Decreases 465 | . 345 120 Time Decay 465 | . 345 120 Squads Dispatched 2 | . 2 . Investigation 1 | . 1 . Extermination . | . . . Reinforcement 1 | . 1 . Assault . | . . . Garrison . | . . . Intercept . | . . . Searches Triggered . | . . . Construction Impeded . | . . . Haulers Reinforced . | . . . Active Scanning Responses . | . . . Cargo Convoy Interrupts . | . . . Stealth | -11 -10 -10 --------- Run | Yrd Mat Sub Distress Signals . | . . . Communications Jammed . | . . . Distress Signals . | . . . Times Spotted 37 | . 19 18 Peak Tracking Total 5 | . 5 3 Tactical Retreats 1 | . 1 . Traps | -11 -10 -10 ------- Run | Yrd Mat Sub Traps Triggered 2 | . 1 1 Indirectly . | . . . Trap Hack Attempts . | . . . Triggered . | . . . Disarmed . | . . . Reprogrammed . | . . . Reused . | . . . Traps Extracted . | . . . Installed . | . . . Triggered . | . . . Machines | -11 -10 -10 ---------- Run | Yrd Mat Sub Machines Disabled . | . . . Max in Single Turn . | . . . Machines Repaired . | . . . Machines Dismantled . | . . . Machines Sabotaged . | . . . Overloaded Fab Kills . | . . . Hacking | -11 -10 -10 --------- Run | Yrd Mat Sub Machines Accessed . | . . . Terminals . | . . . Fabricators . | . . . Repair Stations . | . . . Recycling Units . | . . . Scanalyzers . | . . . Garrison Access . | . . . Total Hacks . | . . . Successful . | . . . Failed . | . . . Catastrophic . | . . . Database Lockouts . | . . . Manual . | . . . Terminals . | . . . Fabricators . | . . . Repair Stations . | . . . Recycling Units . | . . . Scanalyzers . | . . . Garrison Access . | . . . Terminal Hacks . | . . . Fabricator Hacks . | . . . Repair Station Hacks . | . . . Recycling Unit Hacks . | . . . Scanalyzer . | . . . Garrison Access Hacks . | . . . Unauthorized Hacks . | . . . Terminals . | . . . Fabricators . | . . . Repair Stations . | . . . Recycling Units . | . . . Scanalyzers . | . . . Garrison Access . | . . . Data Cores Recovered 1 | . 1 . Used . | . . . Hacking Detections . | . . . Full Trace Events . | . . . Feedback Events . | . . . Feedback Blocked . | . . . Robot Schematics Acquired . | . . . Robots Built . | . . . Authchips . | . . . Time . | . . . Total Robot Build Rating . | . . . Part Schematics Acquired . | . . . Parts Built . | . . . Authchips . | . . . Time . | . . . Total Part Build Rating . | . . . Parts Repaired . | . . . Time . | . . . Parts Recycled . | . . . Recycled Matter . | . . . Retrieved Matter . | . . . Retrieved Components . | . . . Parts Scanalyzed . | . . . Part Schematics Acquired . | . . . Parts Damaged . | . . . Bothacking | -11 -10 -10 ------------ Run | Yrd Mat Sub Used RIF Installer . | . . . Robots Hacked . | . . . Non-combat . | . . . Combat . | . . . Robot Hacks Applied . | . . . Relay Couplers Released . | . . . Fabnet Peak Effective % . | . . . Robots Rewired . | . . . Allies Hacked . | . . . Hacks Repelled . | . . . Allies | -11 -10 -10 -------- Run | Yrd Mat Sub Total Allies . | . . . Largest Group . | . . . Highest-Rated Group . | . . . Highest-Rated Ally . | . . . Total Orders . | . . . Ally Attacks . | . . . Total Damage . | . . . Kills . | . . . Allies Corrupted . | . . . Allies Melted . | . . . Intel | -11 -10 -10 ------- Run | Yrd Mat Sub Active Infowar (turns) . | . . . Robot Analysis Total . | . . . Derelict Logs Recovered 1 | . . 1 Drone Launches . | . . . Drone Recoveries . | . . . Exploration | -11 -10 -10 ------------- Run | Yrd Mat Sub Turns Passed 4153 | 109 939 3105 Spaces Moved 2066 | 64 343 1659 Core 9 | 9 . . Treads 2057 | 55 343 1659 Legs . | . . . Wheels . | . . . Hover . | . . . Flight . | . . . Fastest Speed 50 | 50 160 160 Average Speed 159 | 144 160 160 Slowest Speed 160 | 160 160 160 Overloaded Moves . | . . . Propulsion Burnouts . | . . . Robots Hopped . | . . . Potential Cave-ins . | . . . Cave-ins Triggered . | . . . Exploration Rate (%) 51 | 3 84 66 Regions Visited 2 Branch Regions 1 Pre-discovered Areas 1 | . . 1 Known Exits Taken . | . . . Unknown Exits Taken 2 | 1 1 . Scrap Searched 7 | . . 7 Spaces Dug . | . . . Terrain Destroyed 7 | . . 7 Melee . | . . . Projectile . | . . . AOE 7 | . . 7 Terrain Rammed . | . . . Walls Destroyed . | . . . Machines Disabled . | . . . Actions | -11 -10 -10 --------- Run | Yrd Mat Sub Total 2667 | 81 654 1932 Wait 364 | . 253 111 Move 2064 | 63 342 1659 Hop . | . . . Pick Up 31 | 12 7 12 Fast Attach 4 | . 1 3 Attach 11 | 6 1 4 Detach . | . . . Swap 8 | . 1 7 Drop 24 | . 4 20 Fire 154 | . 45 109 Melee . | . . . Ram . | . . . Kick . | . . . Crush . | . . . Escape Stasis . | . . . Rewire . | . . . Trap . | . . . Miscellaneous 7 | . . 7 Route ------- -11/Scrapyard -10/Materials (discovered 5 exits: [*Mat x3] / [*Min] / [*Sub]) -10/Subcaves (discovered 2 exits: [*Mat x2]) History --------- Turn | Location | Event 4 | -11/Scrapyard | Discovered new exit (range 14) 110 | -11/Scrapyard | Entered Materials 254 | -10/Materials | Discovered new exit (range 15) 301 | -10/Materials | Build established: Mutant 394 | -10/Materials | Discovered new exit (range 15) 583 | -10/Materials | Discovered new exit (range 10) 726 | -10/Materials | Discovered new exit (range 16) 1029 | -10/Materials | Discovered new exit (range 7) 1049 | -10/Materials | Entered Subcaves 1050 | -10/Subcaves | Approached by a straggling Scientist 1186 | -10/Subcaves | Core integrity fell below 50% 1628 | -10/Subcaves | Learned location of Mines (-10) 2013 | -10/Subcaves | Disturbed a concealed Subdweller 2067 | -10/Subcaves | Discovered new exit (range 15) 2069 | -10/Subcaves | Ambushed by Subdwellers from Twisted Machinery 2298 | -10/Subcaves | Build established: Derelict-Mutant 2637 | -10/Subcaves | A swath of the cavern ceiling suddenly collapsed 2959 | -10/Subcaves | Shifting Twisted Machinery released Riot Gun 2970 | -10/Subcaves | Shifting Twisted Machinery released Flamer 3491 | -10/Subcaves | Discovered new exit (range 5) 3537 | -10/Subcaves | Core integrity fell below 20% 3548 | -10/Subcaves | A swath of the cavern ceiling suddenly collapsed 4154 | -10/Subcaves | Destroyed by MB-DED(R) with Subdweller Beam Cannon Last Messages --------------- Dropped Spk. Treads. Acquired Lgt. Treads. HE-YYQ(R) suffers critical hit (Blast). Destroyed Sub. Monowheel. HE-YYQ(R) knocked back. HE-YYQ(R) destroyed. B5-AAE(R) destroyed. Acquired 42 matter. Acquired 7 matter. FE-AZN(R): "MADSUB!" FE-AZN(R) destroyed. Acquired 31 matter. Acquired 5 matter. RQ-RQX(R) knocked back. Scrap Shield destroyed. Destroyed Scrap Shield. RQ-RQX(R) destroyed. Acquired 28 matter. Acquired 9 matter. Acquired 15 matter. Map ----- +----------------------------------------------------+ | ????????????????????????????????????????????????? | | ????????????????????????????????????????????????? | | ????????????????????????????????????????????????? | | ????????????????????????????????????????????????? | | ????????????????????????????????????????????????? | | ????????????????????????????????????????????????? | | ????????????????????????????????????????????????? | | ????????????????????????????????????????????????? | | ????????????????????????????????????????????????? | | ????????????????????????????????????????????????? | | ????????????????????????????????????????????????? | | ????????????????????????????????????????????????? | | ????????????????????????????????????????????????? | | ???????????????????????# """????????????????????? | | ??????????????# ???????# #????????????????????? | | ??????????????#| ?????## ##???????????????????? | | ??????????? ## #####"""""##??????????????????? | | ???????????? """"""#####??????????????? | | ???????????????? "R """"#??????????????? | | ?????????????? ????# "R """#??????????????? | | ????????????? ????# # #???????????????? | | ????????????? #?# ## #???????????????????? | | ???????????? ?????????## #???????????????????? | | ##?????????# ??????????# ;#???????????????????? | | #????#### ???????????# #???????????????????? | | ? ##### ????????????#@ ##???????????????????? | | ?? ???????????## #???????????????????? | | ??? ??????????### #???????????????????? | | ???? #??????????# ##???????????????????? | | ????? ##?????????## #????????????????????? | | ?????# #?????###?# #????????????????????? | | ?????# #?????##"#?### ##???????????????????? | | ?????# #????##""###?#### #???????????????????? | | ?????# #??###"""""##?##"##???????????????????? | | ?????# ####"##|"## ###"##????????????????????? | | ?????# "##""#""###"#"###??????????????????? | | ?????# = ###"""## #""*/!"####???????????????? | | ?????# """#"####="#= #!# ##??????????????? | | ?????## ####"###"&"]"###"# #??????????????? | | ??????# #??###?#"#" ###### #??????????????? | | ?????# ##????#?#"" ###?######??????????????? | | ?????## ??????####""#?#####???????????????? | | ??????## ???????#"# ### #???????????????? | | ???????##" ??????# #????????????????? | | ???????##"" "#?????# " """ #????????????????? | | ???????#"""########???# " # # #?##?????????????? | | ??????##""""#?## #??## "###" ## #?????????????? | | ?###### "=""### #?##"#"## " #?????????????? | | ## "" " """ ###"="## "" #?????????????? | | ## < #?????????????? | +----------------------------------------------------+ Best States ------------- Heat Dissipation 25 Coolant Potential 50 Energy Generation 10 Energy Capacity 250 Matter Stores 300 Matter Capacity 300 Sight Range 16 Terrain Scan Density 10 Armor Coverage 800 Resistance: TH 10 Evasion (%) 40 Recoil Reduction 2 Item Schematics ----------------- None Robot Schematics ------------------ None Fabricated ------------ Nothing Repaired ---------- Nothing Alien Tech Used ----------------- None Achievements -------------- None Challenges ------------ None Game ------ Seed StorageImpulseMultitool Manual? 0 Play Time 00:19:41 Cumulative 196.7 hours Start 2025.09.12 @ 13:08:02 End 2025.09.12 @ 13:26:20 Sessions 1 Manual Loads 0 Difficulty Rogue Special Mode None Game No. 165 Rogue 165 Adventurer 0 Explorer 0 Win Type - Total 10 Types 4/0/2/2/1/0/0/0/0/1 Lore% 89 Gallery% 83 Achievement% 66 Wizard Run 0 Options --------- Layout 1 ASCII 0 Keyboard 0 Movement Numpad Keybinds 0 Fullscreen 1 Font 24/Proggy Map View 50x35 Zoom Use 0% Tactical HUD 0 Map Filters NONE Filters NONE Steam 1 RUN: 7d78db94-04bc-4977-a285-769df9c3b662